bitfinex/quotes_SOLUSD_20260211
["timestamp","ask_amount","ask_price","bid_price","bid_amount"]
[1770826766586,12.68134201,80.55,80.505,0.58018067]
[1770826767295,12.68134201,80.55,80.51,12.68134201]
[1770826767472,12.68134201,80.55,80.521,0.58018067]
[1770826767667,12.41326232,80.559,80.506,43.47502048]
[1770826767668,12.68134201,80.54,80.507,0.58018067]
[1770826767983,12.68134201,80.55,80.507,0.58018067]
[1770826768292,12.41326232,80.559,80.521,0.58018067]
[1770826768471,12.41072712,80.576,80.54,12.68134201]
[1770826768663,12.41018131,80.579,80.541,0.58018067]
[1770826769485,12.41018131,80.579,80.543,0.58018067]
[1770826770357,12.68134201,80.57,80.543,0.58018067]
[1770826770864,12.68134201,80.56,80.537,38.66]
[1770826771198,43.43563459,80.579,80.512,0.58018067]
[1770826771199,12.68134201,80.55,80.512,0.58018067]
[1770826771483,12.68134201,80.53,80.502,0.58018067]
[1770826771690,4.61729252,80.551,80.495,38.66]
[1770826771691,25.09753272,80.54,80.504,0.58018067]
[1770826772297,25.09753272,80.54,80.506,0.58018067]
[1770826773070,25.09753272,80.54,80.508,0.58018067]
[1770826773878,25.09754964,80.54,80.51,0.58018067]
[1770826774596,12.41489833,80.549,80.511,0.58018067]
[1770826775465,12.41489833,80.549,80.509,43.47340048]
[1770826775466,12.68134201,80.56,80.521,0.58018067]
[1770826775782,25.09459228,80.56,80.521,0.58018067]
[1770826776082,25.09459228,80.56,80.523,0.58018067]
[1770826776985,25.11774406,80.56,80.523,0.58018067]
[1770826777485,39.6,80.566,80.523,0.58018067]
[1770826777686,12.41107645,80.574,80.531,0.58018067]
[1770826777990,12.70449379,80.57,80.531,0.58018067]
[1770826778189,12.41107645,80.574,80.541,0.58018067]
[1770826778565,25.11464854,80.58,80.541,0.58018067]
[1770826778770,12.70449379,80.58,80.542,0.58018067]
[1770826779283,4.61729252,80.583,80.542,0.58018067]
[1770826779679,12.70449379,80.58,80.542,0.58018067]
[1770826780078,12.41018131,80.579,80.544,0.58018067]
[1770826780484,12.41018131,80.579,80.545,0.58018067]
[1770826780978,12.41018131,80.579,80.519,99.35522619]
[1770826780979,12.70449379,80.56,80.521,0.58018067]
[1770826781187,12.70449379,80.56,80.488,49.69629647]
[1770826781188,12.70449379,80.56,80.523,0.58018067]
[1770826781377,12.70449379,80.56,80.524,0.58018067]
[1770826782493,12.41326232,80.559,80.524,0.58018067]
[1770826783004,39.68,80.567,80.531,0.58018067]
[1770826783389,12.41085628,80.575,80.531,0.58018067]
[1770826783679,12.70449379,80.58,80.541,0.58018067]
[1770826783904,6.4808056,80.6,80.561,0.58018067]
[1770826784072,39.68,80.619,80.563,0.58018067]
[1770826784270,6.48111364,80.609,80.571,0.58018067]
[1770826784475,12.40421441,80.618,80.582,12.40971929]
[1770826784701,12.70449379,80.62,80.584,0.58018067]
[1770826785078,25.10849073,80.62,80.584,0.58018067]
[1770826785580,12.40272239,80.628,80.591,0.58018067]
[1770826785882,12.40248545,80.629,80.593,0.58018067]
[1770826786081,31.00582909,80.63,80.567,0.58018067]
[1770826786392,12.70449379,80.61,80.571,0.58018067]
[1770826786596,12.70449379,80.61,80.57,12.70449379]
[1770826786597,12.40556265,80.609,80.575,0.58018067]
[1770826786776,12.70449379,80.6,80.575,0.58018067]
[1770826786977,12.70449379,80.59,80.557,38.8]
[1770826787287,12.70449379,80.6,80.56,12.70449379]
[1770826787485,12.70449379,80.6,80.561,0.58018067]
[1770826787870,12.70449379,80.6,80.563,0.58018067]
[1770826788399,39.7,80.602,80.57,12.70449379]
[1770826788579,12.70449379,80.61,80.573,0.58018067]
[1770826788889,12.40483581,80.614,80.58,12.70449379]
[1770826789089,39.72,80.618,80.581,0.58018067]
[1770826789297,12.70449379,80.62,80.591,0.58018067]
[1770826789470,39.72,80.632,80.591,0.58018067]
[1770826789471,12.70449379,80.61,80.591,0.58018067]
[1770826789895,12.70449379,80.62,80.591,0.58018067]
[1770826790280,12.70449379,80.63,80.591,0.58018067]
[1770826790590,12.70449379,80.62,80.591,0.58018067]
[1770826790774,12.40402386,80.619,80.584,12.9894609]
[1770826790970,12.40402386,80.619,80.585,0.58018067]
[1770826791583,0.2,80.68,80.586,0.58018067]
[1770826791896,3.23961554,80.656,80.64,12.70449379]
[1770826792101,0.53743295,80.662,80.62,0.49938204]
[1770826792270,0.53743295,80.662,80.584,254.39280052]
[1770826792271,12.70449379,80.64,80.619,38.82]
[1770826792595,12.70449379,80.63,80.598,0.49938204]
[1770826792787,0.53743295,80.609,80.575,12.41079739]
[1770826792995,0.53743295,80.621,80.576,0.49938204]
[1770826793292,0.53743295,80.619,80.581,0.49938204]
[1770826793502,12.70449379,80.63,80.591,0.49938204]
[1770826794097,12.70449379,80.61,80.581,0.49938204]
[1770826794296,0.53743295,80.62,80.581,0.49938204]
[1770826794499,12.70449379,80.61,80.581,0.49938204]
[1770826794999,0.53743295,80.609,80.582,12.40971929]
[1770826795804,39.66,80.629,80.583,0.49938204]
[1770826795805,12.70449379,80.62,80.583,0.49938204]
[1770826796184,12.70449379,80.63,80.591,0.49938204]
[1770826797404,13.24192674,80.64,80.593,0.49938204]
[1770826797602,13.24192674,80.64,80.601,0.49938204]
[1770826798498,0.53743295,80.666,80.63,12.70449379]
[1770826798680,0.53743295,80.666,80.631,0.49938204]
[1770826799301,12.39695035,80.665,80.633,12.4018702]
[1770826799691,12.93429455,80.666,80.633,12.90125224]
[1770826799887,0.53743295,80.665,80.633,43.63692774]
[1770826800092,0.53743295,80.669,80.634,0.49938204]
[1770826800404,12.70449379,80.65,80.632,38.84]
[1770826800800,12.70449379,80.65,80.399,33.53405054]
[1770826800801,0.53743295,80.639,80.604,12.40633219]
[1770826801103,0.53743295,80.639,80.612,38.86]
[1770826801306,0.53743295,80.639,80.613,12.40494709]
[1770826801504,0.2,80.67,80.613,12.40494709]
[1770826801505,12.70449379,80.66,80.621,0.49938204]
[1770826801706,0.2,80.67,80.631,0.49938204]
[1770826801707,12.90449379,80.67,80.631,0.49938204]
[1770826802001,12.90449379,80.67,80.641,0.49938204]
[1770826802002,0.2,80.67,80.641,0.49938204]
[1770826802202,0.2,80.67,80.643,0.49938204]
[1770826802413,39.58,80.703,80.642,38.86]
[1770826802414,0.53743295,80.702,80.661,0.49938204]
[1770826802596,0.53743295,80.702,80.67,12.70449379]
[1770826802794,0.53743295,80.709,80.67,12.70449379]
[1770826802986,0.53743295,80.709,80.671,0.33301388]
[1770826803192,5.36086188,80.742,80.671,0.33301388]
[1770826803193,0.53743295,80.719,80.68,12.70449379]
[1770826803388,0.53743295,80.689,80.652,12.39894856]
[1770826803600,0.53743295,80.689,80.652,43.39631998]
[1770826803795,0.53743295,80.689,80.66,12.70449379]
[1770826804412,0.53743295,80.689,80.66,51.54449379]
[1770826804911,0.53743295,80.707,80.67,13.02469797]
[1770826805115,0.53743295,80.717,80.68,12.70449379]
[1770826805411,0.53743295,80.753,80.711,0.32020418]
[1770826805722,0.53743295,80.753,80.72,12.70449379]
[1770826805932,0.53743295,80.739,80.7,12.70449379]
[1770826806106,0.53743295,80.739,80.69,12.70449379]
[1770826806294,0.53743295,80.739,80.7,12.70449379]
[1770826806493,0.53743295,80.729,80.691,38.84]
[1770826806705,0.53743295,80.719,80.682,12.39433826]
[1770826807020,0.53743295,80.709,80.682,12.39433826]
[1770826807191,0.53743295,80.73,80.7,12.70449379]
[1770826807397,0.53743295,80.719,80.686,12.39365163]
[1770826807802,0.53743295,80.731,80.7,12.70449379]
[1770826808124,0.53743295,80.731,80.686,43.37796117]
[1770826808125,0.53743295,80.729,80.69,12.70449379]
[1770826808417,0.53743295,80.729,80.7,12.70449379]
[1770826808913,0.53743295,80.729,80.69,12.70449379]
[1770826809289,0.53743295,80.739,80.701,43.36997063]
[1770826809509,0.63743295,80.75,80.72,12.70449379]
[1770826810122,13.34192674,80.75,80.716,38.84]
[1770826810320,0.53743295,80.748,80.716,38.84]
[1770826810618,0.1,80.75,80.72,12.70449379]
[1770826810818,12.70449379,80.74,80.716,38.84]
[1770826811024,12.48391043,80.75,80.716,38.84]
[1770826811025,0.53743295,80.739,80.716,38.84]
[1770826811720,0.53743295,80.739,80.717,12.38896391]
[1770826813601,0.53743295,80.729,80.68,12.70449379]
[1770826813815,0.53743295,80.702,80.661,0.49081357]
[1770826814015,12.70449379,80.7,80.662,38.88]
[1770826814220,12.70449379,80.69,80.652,0.49081357]
[1770826814423,43.35546526,80.728,80.657,38.88]
[1770826814424,12.70449379,80.68,80.657,38.88]
[1770826814610,0.53743295,80.689,80.657,38.88]
[1770826814810,12.70449379,80.68,80.657,38.88]
[1770826815122,0.53743295,80.689,80.657,38.88]
[1770826815721,0.53743295,80.689,80.638,43.40385425]
[1770826815722,12.70449379,80.67,80.638,31.00275304]
[1770826815928,0.53743295,80.679,80.638,31.00275304]
[1770826815929,0.53743295,80.679,80.641,0.49081357]
[1770826816526,12.70449379,80.67,80.638,31.00275304]
[1770826816712,0.53743295,80.659,80.633,38.9]
[1770826817223,0.53743295,80.669,80.633,38.9]
[1770826817401,12.70449379,80.67,80.634,0.49081357]
[1770826817598,0.53743295,80.669,80.634,0.49081357]
[1770826818019,0.53743295,80.659,80.633,38.9]
[1770826818228,0.53743295,80.659,80.625,38.92]
[1770826818817,12.70449379,80.65,80.625,38.92]
[1770826819014,13.24192674,80.65,80.625,38.92]
[1770826819206,43.38771259,80.668,80.621,12.40371615]
[1770826819207,12.70449379,80.66,80.621,43.41300653]
[1770826819414,0.53743295,80.659,80.622,39.43081357]
[1770826819616,0.53743295,80.659,80.623,0.49081357]
[1770826820331,0.53743295,80.67,80.64,12.70449379]
[1770826820510,0.53743295,80.67,80.631,0.49081357]
[1770826820713,0.49460418,80.695,80.66,12.70449379]
[1770826820913,0.49460418,80.695,80.661,38.96]
[1770826821707,12.70449379,80.71,80.67,0.46608466]
[1770826822009,12.70449379,80.71,80.671,38.96]
[1770826822211,0.49460418,80.719,80.69,12.70449379]
[1770826822409,0.49460418,80.719,80.681,43.38072159]
[1770826822410,0.49460418,80.739,80.7,12.70449379]
[1770826822710,0.49460418,80.729,80.691,38.96]
[1770826822911,0.49460418,80.729,80.7,12.70449379]
[1770826823120,0.49460418,80.729,80.691,38.96]
[1770826823834,0.49460418,80.719,80.681,43.38072159]
[1770826824209,0.49460418,80.719,80.69,12.70449379]
[1770826824411,0.49460418,80.719,80.691,12.39295584]
[1770826824625,12.70449379,80.73,80.691,12.39295584]
[1770826824626,13.19909797,80.73,80.691,43.37534544]
[1770826824818,0.49460418,80.73,80.7,12.70449379]
[1770826825024,0.49460418,80.751,80.72,12.70449379]
[1770826825919,12.80449379,80.75,80.721,38.98]
[1770826826316,12.80449379,80.75,80.722,12.38819652]
[1770826826529,12.80449379,80.75,80.722,43.35868783]
[1770826826729,0.49908726,80.749,80.722,43.35868783]
[1770826827612,0.1,80.75,80.723,0.49081357]
[1770826827812,0.1,80.75,80.723,39.49081357]
[1770826828014,0.1,80.75,80.723,0.49081357]
[1770826828213,0.1,80.75,80.724,39.0]
[1770826828413,0.1,80.75,80.726,0.49081357]
[1770826828635,0.1,80.75,80.725,43.35707649]
[1770826828636,0.1,80.76,80.73,13.19530736]
[1770826828933,12.70449379,80.78,80.741,0.39081357]
[1770826829511,12.70449379,80.78,80.743,0.39081357]
[1770826829935,12.70449379,80.77,80.732,0.39081357]
[1770826830113,0.49908726,80.779,80.734,0.39081357]
[1770826830430,12.70449379,80.8,80.761,43.33774964]
[1770826830617,12.70449379,80.8,80.762,39.02]
[1770826831218,0.49908726,80.799,80.761,43.33774964]
[1770826831421,0.49908726,80.799,80.762,39.04]
[1770826832023,12.37520001,80.807,80.763,0.39081357]
[1770826832225,0.49908726,80.819,80.78,12.70449379]
[1770826832431,0.49908726,80.819,80.781,51.43914856]
[1770826832735,39.16,80.844,80.781,51.43914856]
[1770826832736,0.59908726,80.84,80.791,0.39081357]
[1770826832938,0.1,80.84,80.82,12.70449379]
[1770826833119,12.80449379,80.84,80.819,39.06]
[1770826833323,12.80449379,80.84,80.817,39.04]
[1770826833516,0.1,80.84,80.817,39.04]
[1770826833913,12.80449379,80.84,80.817,39.04]
[1770826834246,0.49908726,80.829,80.793,39.04]
[1770826834447,0.49908726,80.799,80.768,30.95255951]
[1770826834629,0.49908726,80.799,80.778,39.04]
[1770826835839,0.49908726,80.799,80.761,12.38221418]
[1770826836143,12.70449379,80.83,80.781,0.49238993]
[1770826836328,12.70449379,80.82,80.782,39.06]
[1770826836528,12.37332805,80.819,80.783,12.37884208]
[1770826836825,12.70449379,80.81,80.783,12.37884208]
[1770826837836,12.70449379,80.81,80.782,39.06]
[1770826838135,0.49908726,80.799,80.774,12.38009293]
[1770826839244,0.49908726,80.799,80.759,0.49238993]
[1770826839245,12.62788082,80.78,80.749,12.38405429]
[1770826839448,12.62788082,80.78,80.75,39.57238993]
[1770826839739,12.62788082,80.78,80.751,0.49238993]
[1770826839922,0.49908726,80.789,80.751,0.49238993]
[1770826840435,12.62788082,80.78,80.751,0.49238993]
[1770826840842,12.62788082,80.77,80.75,39.08]
[1770826841047,13.12696808,80.77,80.75,39.08]
[1770826841342,12.62788082,80.76,80.709,0.5]
[1770826841514,43.3276885,80.78,80.709,0.5]
[1770826841515,12.62788082,80.74,80.709,0.5]
[1770826842228,12.62788082,80.75,80.709,0.5]
[1770826842537,12.62788082,80.74,80.709,0.5]
[1770826842726,12.62788082,80.73,80.708,12.39034544]
[1770826843124,4.61729252,80.757,80.7,0.5]
[1770826843334,39.04,80.756,80.701,0.5]
[1770826843518,12.62788082,80.78,80.741,0.5]
[1770826843719,12.62788082,80.78,80.742,0.5]
[1770826844176,12.62788082,80.79,80.751,0.5]
[1770826844326,12.62788082,80.8,80.751,0.5]
[1770826844648,12.62788082,80.79,80.751,0.5]
[1770826844837,12.62788082,80.79,80.753,0.5]
[1770826845034,12.62788082,80.8,80.761,0.5]
[1770826845236,25.00258692,80.81,80.763,0.5]
[1770826845436,12.62788082,80.79,80.763,0.5]
[1770826846153,12.62788082,80.78,80.753,0.5]
[1770826846847,12.62788082,80.78,80.754,12.38328751]
[1770826847043,12.62788082,80.79,80.756,0.5]
[1770826847553,12.62788082,80.81,80.761,0.5]
[1770826847727,12.62788082,80.81,80.771,0.5]
[1770826847929,12.62788082,80.81,80.754,105.25794386]
[1770826847930,6.44394621,80.878,80.792,0.5]
[1770826848229,12.62788082,80.86,80.821,0.5]
[1770826848941,0.11365218,80.864,80.812,0.49238993]
[1770826849143,0.11365218,80.864,80.769,49.52345279]
[1770826849144,12.62788082,80.83,80.802,0.49238993]
[1770826849545,12.62788082,80.84,80.802,0.49238993]
[1770826850345,12.62788082,80.85,80.811,0.50101135]
[1770826850535,43.28094278,80.867,80.811,0.50101135]
[1770826850741,12.62788082,80.86,80.821,0.50101135]
[1770826850950,12.62788082,80.85,80.822,12.37286877]
[1770826851149,12.62788082,80.86,80.823,0.50101135]
[1770826851433,12.62788082,80.85,80.823,0.50101135]
[1770826851646,12.62788082,80.84,80.818,12.37348115]
[1770826852053,12.62788082,80.84,80.814,12.37407083]
[1770826852852,12.62788082,80.84,80.8,12.62788082]
[1770826852853,12.62788082,80.84,80.802,0.50101135]
[1770826853134,12.62788082,80.84,80.791,0.50101135]
[1770826853332,12.62788082,80.84,80.76,12.62788082]
[1770826853333,12.62788082,80.84,80.801,0.50101135]
[1770826853555,12.62788082,80.85,80.811,0.50101135]
[1770826854237,0.11273794,80.9,80.801,0.50101135]
[1770826854459,12.36109222,80.899,80.851,0.50101135]
[1770826854653,12.36109222,80.899,80.823,4.61729252]
[1770826854654,12.35866262,80.915,80.87,12.62788082]
[1770826854836,12.62788082,80.92,80.88,12.62788082]
[1770826855152,51.60788082,80.93,80.881,43.27345111]
[1770826855353,0.1,80.93,80.9,12.62788082]
[1770826855559,0.1,80.93,80.887,39.12]
[1770826855742,12.72788082,80.93,80.89,12.62788082]
[1770826856156,12.62788082,80.92,80.887,39.12]
[1770826856547,12.62788082,80.91,80.881,12.86485452]
[1770826857164,12.62788082,80.89,80.859,12.36720711]
[1770826857335,12.62788082,80.88,80.859,0.50101135]
[1770826857955,12.62788082,80.88,80.836,39.12]
[1770826857956,12.62788082,80.87,80.847,0.50101135]
[1770826858257,12.62788082,80.89,80.861,0.50101135]
[1770826858454,0.21216243,80.908,80.861,0.50101135]
[1770826858651,43.25847556,80.909,80.849,0.50101135]
[1770826858652,12.62788082,80.87,80.849,0.50101135]
[1770826858966,12.62788082,80.87,80.843,12.36951891]
[1770826859259,12.62788082,80.88,80.843,0.50101135]
[1770826859448,12.62788082,80.87,80.851,0.50101135]
[1770826859647,12.62788082,80.88,80.851,0.50101135]
[1770826860157,12.62788082,80.86,80.84,0.50101135]
[1770826860455,4.61729252,80.914,80.831,12.37149113]
[1770826860456,12.62788082,80.9,80.851,0.50101135]
[1770826860641,12.62788082,80.91,80.871,0.50101135]
[1770826861244,12.62788082,80.92,80.881,0.50101135]
[1770826861450,0.1,80.93,80.891,0.50101135]
[1770826861645,0.1,80.93,80.901,0.50101135]
[1770826862051,12.72788082,80.93,80.901,0.50101135]
[1770826862255,0.31161318,80.971,80.911,0.50101135]
[1770826862557,12.62788082,80.99,80.951,0.50101135]
[1770826862945,12.62788082,80.96,80.928,0.50101135]
[1770826863160,12.62788082,81.0,80.92,12.62788082]
[1770826863161,12.62788082,80.99,80.951,0.50101135]
[1770826863354,12.62788082,81.0,80.961,0.50101135]
[1770826863555,12.62788082,81.01,80.971,0.50101135]
[1770826863761,6.4298365,81.027,80.952,43.23549757]
[1770826863762,12.72788082,81.02,80.981,0.50101135]
[1770826864061,12.62788082,81.01,80.966,0.50101135]
[1770826864250,43.61067555,81.02,80.961,0.50101135]
[1770826864456,12.62788082,81.01,80.971,0.50101135]
[1770826864648,0.1,81.02,80.991,0.50101135]
[1770826864848,12.72788082,81.02,80.991,0.50101135]
[1770826865059,12.62788082,81.01,80.991,0.50101135]
[1770826865262,0.45667619,81.018,80.961,43.23069131]
[1770826865448,12.62788082,81.01,80.97,12.62788082]
[1770826865654,38.72,81.019,80.97,12.62788082]
[1770826865958,12.62788082,80.99,80.961,12.35162609]
[1770826866149,12.62788082,81.0,80.961,12.35162609]
[1770826867052,12.62788082,80.98,80.94,12.62788082]
[1770826867247,12.62788082,80.98,80.941,0.50101135]
[1770826867664,12.62788082,80.99,80.951,0.50101135]
[1770826867963,12.62788082,80.98,80.943,0.50101135]
[1770826868166,12.62788082,80.99,80.951,0.50101135]
[1770826868364,12.62788082,80.98,80.951,0.50101135]
[1770826868572,12.62788082,80.98,80.943,0.50101135]
[1770826868873,12.62788082,81.0,80.96,13.12889217]
[1770826869452,12.62788082,81.0,80.961,0.50101135]
[1770826869757,12.34735581,80.989,80.952,12.35288684]
[1770826869964,12.62788082,80.98,80.941,0.50101135]
[1770826870550,12.34735581,80.989,80.95,12.62788082]
[1770826870771,12.34735581,80.989,80.951,0.50101135]
[1770826871167,12.62788082,80.98,80.951,0.50101135]
[1770826871359,12.804032,80.989,80.951,0.50101135]
[1770826871672,12.804032,80.989,80.938,12.35513603]
[1770826871673,12.62788082,80.97,80.938,12.35513603]
[1770826871877,12.62788082,80.96,80.938,12.35513603]
[1770826872055,12.62788082,80.96,80.927,0.50101135]
[1770826872056,12.62788082,80.96,80.929,12.35639887]
[1770826872371,12.62788082,80.95,80.927,0.50101135]
[1770826872560,12.62788082,80.96,80.927,0.50101135]
[1770826872874,12.8070819,80.969,80.926,39.02]
[1770826872875,12.62788082,80.95,80.926,39.02]
[1770826873070,0.45667619,80.961,80.926,39.02]
[1770826873273,12.62788082,80.96,80.928,0.50101135]
[1770826873455,12.62788082,80.97,80.931,0.50101135]
[1770826873655,24.97817605,80.97,80.931,0.50101135]
[1770826873855,12.62788082,80.97,80.933,0.50101135]
[1770826874368,12.35040571,80.969,80.933,0.50101135]
[1770826874985,12.62788082,80.95,80.926,51.37681548]
[1770826875156,12.62788082,80.94,80.891,0.50101135]
[1770826875355,12.62788082,80.93,80.891,0.50101135]
[1770826875654,12.62788082,80.91,80.881,0.50101135]
[1770826876172,12.62788082,80.91,80.87,12.62788082]
[1770826876173,12.62788082,80.93,80.891,0.50101135]
[1770826876375,12.62788082,80.94,80.901,0.50101135]
[1770826876765,12.62788082,80.93,80.901,0.50101135]
[1770826877368,12.35467809,80.941,80.901,0.50101135]
[1770826877676,12.62788082,80.92,80.89,0.50101135]
[1770826877976,0.45667619,80.98,80.901,0.50101135]
[1770826878176,12.62788082,80.96,80.921,0.50101135]
[1770826878379,12.62788082,80.95,80.921,0.50101135]
[1770826878675,12.62788082,80.96,80.921,0.50101135]
[1770826878977,38.64,80.972,80.941,0.50101135]
[1770826879273,38.64,80.972,80.891,30.90578679]
[1770826879274,0.45667619,80.949,80.898,0.50101135]
[1770826879480,12.62788082,80.93,80.898,0.50101135]
[1770826879780,12.35651002,80.929,80.9,0.50101135]
[1770826880079,12.35651002,80.929,80.89,12.62788082]
[1770826880080,12.62788082,80.91,80.879,12.36413056]
[1770826880270,12.62788082,80.9,80.879,12.36413056]
[1770826880469,12.62788082,80.9,80.874,12.36478975]
[1770826880665,12.62788082,80.91,80.875,0.49704232]
[1770826880866,12.62788082,80.92,80.881,0.49704232]
[1770826881067,12.62788082,80.91,80.881,0.49704232]
[1770826881464,12.62788082,80.92,80.881,0.49704232]
[1770826881686,12.62788082,80.93,80.891,0.49704232]
[1770826881871,38.6,80.935,80.901,0.49704232]
[1770826882064,12.62788082,80.95,80.91,12.62788082]
[1770826882265,12.62788082,80.95,80.911,0.49704232]
[1770826882561,12.62788082,80.95,80.912,0.49704232]
[1770826883180,12.62788082,80.93,80.892,12.36216189]
[1770826883374,12.35254153,80.955,80.882,69.94892552]
[1770826883375,12.62788082,80.91,80.882,69.94892552]
[1770826883565,12.62788082,80.9,80.883,12.36353745]
[1770826883762,12.62788082,80.9,80.872,51.40521868]
[1770826883967,12.62788082,80.91,80.873,0.49704232]
[1770826884277,12.62788082,80.9,80.873,0.49704232]
[1770826884481,12.62788082,80.89,80.872,12.36521868]
[1770826884685,12.62788082,80.89,80.869,39.04]
[1770826884886,12.62788082,80.89,80.85,12.62788082]
[1770826884887,12.62788082,80.89,80.858,0.49704232]
[1770826885183,12.62788082,80.89,80.807,49.50064697]
[1770826885184,12.62788082,80.87,80.831,0.49704232]
[1770826885480,12.62788082,80.87,80.841,0.49704232]
[1770826885690,12.62788082,80.86,80.828,0.49704232]
[1770826885864,12.62788082,80.85,80.828,0.49704232]
[1770826886063,12.62788082,80.84,80.806,0.49704232]
[1770826886272,12.62788082,80.85,80.811,0.49704232]
[1770826886462,12.62788082,80.83,80.801,12.37608445]
[1770826886670,12.62788082,80.83,80.802,0.49693957]
[1770826886865,12.62788082,80.85,80.811,0.49693957]
[1770826887070,12.62788082,80.83,80.811,0.49693957]
[1770826887287,12.62788082,80.82,80.796,12.37673318]
[1770826887502,12.62788082,80.82,80.797,0.49693957]
[1770826888177,12.62788082,80.81,80.782,12.37899532]
[1770826888378,12.62788082,80.82,80.783,0.49693957]
[1770826888786,12.62788082,80.81,80.783,0.49693957]
[1770826888969,13.10788767,80.82,80.783,0.49693957]
[1770826889170,12.62788082,80.81,80.783,0.49693957]
[1770826889684,12.62788082,80.79,80.765,0.49693957]
[1770826889983,12.62788082,80.79,80.759,12.38243144]
[1770826890785,12.62788082,80.78,80.755,12.38313417]
[1770826890984,12.37792273,80.789,80.754,0.49693957]
[1770826890985,12.62788082,80.77,80.754,0.49693957]
[1770826891484,12.62788082,80.77,80.744,12.38476896]
[1770826891865,12.62788082,80.77,80.742,0.49693957]
[1770826892065,12.62788082,80.77,80.742,12.88197508]
[1770826892282,12.62788082,80.77,80.73,12.82788082]
[1770826892283,13.10788767,80.75,80.73,0.2]
[1770826892472,12.62788082,80.74,80.705,0.49693957]
[1770826892784,12.62788082,80.74,80.699,39.1]
[1770826892785,12.62788082,80.72,80.699,39.1]
[1770826893083,0.48000685,80.738,80.699,39.1]
[1770826893084,12.62788082,80.73,80.699,39.1]
[1770826893386,12.62788082,80.72,80.7,12.39157372]
[1770826893568,12.62788082,80.73,80.7,12.39157372]
[1770826893768,12.62788082,80.72,80.695,12.39227279]
[1770826893969,12.62788082,80.73,80.696,0.49693957]
[1770826894166,12.62788082,80.73,80.697,12.88897397]
[1770826894380,12.62788082,80.73,80.698,0.49693957]
[1770826895176,12.62788082,80.72,80.692,12.39275692]
[1770826895380,12.62788082,80.7,80.684,12.39401417]
[1770826895578,0.48000685,80.745,80.691,0.49693957]
[1770826895787,12.62788082,80.74,80.701,0.49693957]
[1770826895966,12.62788082,80.73,80.701,0.49693957]
[1770826896374,12.62788082,80.72,80.702,12.39126663]
[1770826896570,12.62788082,80.73,80.702,12.39126663]
[1770826896779,13.10788767,80.71,80.665,0.49693957]
[1770826896983,13.10788767,80.71,80.66,12.62788082]
[1770826896984,12.62788082,80.7,80.667,0.49693957]
[1770826897187,12.62788082,80.69,80.667,0.49693957]
[1770826897590,12.62788082,80.68,80.65,0.49693957]
[1770826897781,12.62788082,80.68,80.651,12.3991023]
[1770826898090,12.62788082,80.67,80.641,0.49693957]
[1770826898500,12.62788082,80.67,80.642,0.49693957]
[1770826898877,12.66753179,80.67,80.642,0.49693957]
[1770826899080,12.66753179,80.66,80.641,12.40055422]
[1770826899405,12.66753179,80.68,80.641,0.49693957]
[1770826899886,12.66753179,80.67,80.641,0.49693957]
[1770826900082,0.48000685,80.727,80.641,0.49693957]
[1770826900313,12.66753179,80.7,80.652,0.49693957]
[1770826900505,12.66753179,80.7,80.661,0.49693957]
[1770826900893,12.66753179,80.69,80.661,0.49693957]
[1770826902289,12.66753179,80.69,80.662,12.39741142]
[1770826902492,0.48000685,80.706,80.663,0.49693957]
[1770826902791,12.66753179,80.7,80.662,43.39093997]
[1770826902991,12.66753179,80.68,80.662,12.39741142]
[1770826903187,12.66753179,80.67,80.643,12.40033232]
[1770826904385,12.66753179,80.67,80.644,0.49693957]
[1770826904812,12.66753179,80.66,80.643,43.40116314]
[1770826904991,12.66753179,80.66,80.643,12.40033232]
[1770826905804,12.66753179,80.66,80.634,12.40171639]
[1770826905989,12.66753179,80.65,80.634,12.40171639]
[1770826906192,12.66753179,80.65,80.623,31.00836829]
[1770826906392,12.66753179,80.64,80.62,12.40387]
[1770826906713,12.66753179,80.65,80.621,0.49693957]
[1770826907593,0.48000685,80.629,80.601,12.40679396]
[1770826907788,12.66753179,80.61,80.601,12.40679396]
[1770826908008,12.66753179,80.61,80.581,43.43455652]
[1770826908310,12.66753179,80.61,80.581,43.93789116]
[1770826908699,12.66753179,80.6,80.581,43.93789116]
[1770826909011,12.66753179,80.6,80.581,12.91320793]
[1770826909518,12.66753179,80.64,80.582,0.50333464]
[1770826909691,12.66753179,80.61,80.582,0.50333464]
[1770826910808,12.66753179,80.61,80.584,0.50333464]
[1770826911809,12.66753179,80.62,80.584,0.50333464]
[1770826912118,12.66753179,80.63,80.591,0.50333464]
[1770826912414,12.66753179,80.64,80.601,0.50333464]
[1770826912790,12.40022973,80.644,80.592,39.42]
[1770826912791,12.66753179,80.63,80.603,0.50333464]
[1770826913113,12.66753179,80.61,80.595,12.40757659]
[1770826913312,12.66753179,80.61,80.59,39.44]
[1770826913891,12.66753179,80.61,80.59,51.84836113]
[1770826914094,12.66753179,80.6,80.59,39.44]